Workbook

Sheet Kuukausibudjetin yhteenveto
B1: YRITYKSEN NIMI
B2: KUUKAUSIBUDJETTI | E2: Päivämäärä
B4: BUDJETIN SUMMAT | C4: ARVIOITU | D4: TODELLINEN | E4: EROTUS
B5: Tulot | C5: =Tulot[[#Totals],[ARVIOITU]] -> 63,300.00 | D5: =Tulot[[#Totals],[TODELLINEN]] -> 57,450.00 | E5: =Summat[[#This Row],[TODELLINEN]]-Summat[[#This Row],[ARVIOITU]] -> -5,850.00
B6: Kulut | C6: =Liiketoiminnan_kulut[[#Totals],[ARVIOITU]]+Henkilöstökulut[[#Totals],[ARVIOITU]] -> 54,500.00 | D6: =Liiketoiminnan_kulut[[#Totals],[TODELLINEN]]+Henkilöstökulut[[#Totals],[TODELLINEN]] -> 49,630.00 | E6: =Summat[[#This Row],[ARVIOITU]]-Summat[[#This Row],[TODELLINEN]] -> 4,870.00
B7: Saldo (tulot vähennettyinä kuluilla) | C7: =C5-C6 -> 8,800.00 | D7: =D5-D6 -> 7,820.00 | E7: =Summat[[#Totals],[TODELLINEN]]-Summat[[#Totals],[ARVIOITU]] -> -980.00
B10: MITKÄ OVAT VIISI SUURINTA LIIKETOIMINNAN KULUANI?
B11: KULU | C11: MÄÄRÄ | D11: % KULUISTA | E11: 15 %:N VÄHENNYS
B12: =INDEX(Liiketoiminnan_kulut[],MATCH(ViisiSuurintaKulua[[#This Row],[MÄÄRÄ]],Liiketoiminnan_kulut[VIISI SUURINTA MÄÄRÄÄ],0),1) -> Huolto ja korjaukset | C12: =LARGE(Liiketoiminnan_kulut[VIISI SUURINTA MÄÄRÄÄ],1) -> 4,600.00 | D12: =ViisiSuurintaKulua[[#This Row],[MÄÄRÄ]]/$D$6 -> 9.3% | E12: =ViisiSuurintaKulua[[#This Row],[MÄÄRÄ]]*0.15 -> 690.00
B13: =INDEX(Liiketoiminnan_kulut[],MATCH(ViisiSuurintaKulua[[#This Row],[MÄÄRÄ]],Liiketoiminnan_kulut[VIISI SUURINTA MÄÄRÄÄ],0),1) -> Tarvikkeet | C13: =LARGE(Liiketoiminnan_kulut[VIISI SUURINTA MÄÄRÄÄ],2) -> 4,500.00 | D13: =ViisiSuurintaKulua[[#This Row],[MÄÄRÄ]]/$D$6 -> 9.1% | E13: =ViisiSuurintaKulua[[#This Row],[MÄÄRÄ]]*0.15 -> 675.00
B14: =INDEX(Liiketoiminnan_kulut[],MATCH(ViisiSuurintaKulua[[#This Row],[MÄÄRÄ]],Liiketoiminnan_kulut[VIISI SUURINTA MÄÄRÄÄ],0),1) -> Vuokra tai asuntolaina | C14: =LARGE(Liiketoiminnan_kulut[VIISI SUURINTA MÄÄRÄÄ],3) -> 4,500.00 | D14: =ViisiSuurintaKulua[[#This Row],[MÄÄRÄ]]/$D$6 -> 9.1% | E14: =ViisiSuurintaKulua[[#This Row],[MÄÄRÄ]]*0.15 -> 675.00
B15: =INDEX(Liiketoiminnan_kulut[],MATCH(ViisiSuurintaKulua[[#This Row],[MÄÄRÄ]],Liiketoiminnan_kulut[VIISI SUURINTA MÄÄRÄÄ],0),1) -> Verot | C15: =LARGE(Liiketoiminnan_kulut[VIISI SUURINTA MÄÄRÄÄ],4) -> 3,200.00 | D15: =ViisiSuurintaKulua[[#This Row],[MÄÄRÄ]]/$D$6 -> 6.4% | E15: =ViisiSuurintaKulua[[#This Row],[MÄÄRÄ]]*0.15 -> 480.00
B16: =INDEX(Liiketoiminnan_kulut[],MATCH(ViisiSuurintaKulua[[#This Row],[MÄÄRÄ]],Liiketoiminnan_kulut[VIISI SUURINTA MÄÄRÄÄ],0),1) -> Mainonta | C16: =LARGE(Liiketoiminnan_kulut[VIISI SUURINTA MÄÄRÄÄ],5) -> 2,500.00 | D16: =ViisiSuurintaKulua[[#This Row],[MÄÄRÄ]]/$D$6 -> 5.0% | E16: =ViisiSuurintaKulua[[#This Row],[MÄÄRÄ]]*0.15 -> 375.00
B17: Summa | C17: =SUBTOTAL(109,ViisiSuurintaKulua[MÄÄRÄ]) -> 19,300.00 | D17: =SUBTOTAL(109,ViisiSuurintaKulua[% KULUISTA]) -> 38.9% | E17: =SUBTOTAL(109,ViisiSuurintaKulua[15 %:N VÄHENNYS]) -> 2,895.00

Sheet Tulot
B1: =YRITYKSEN_NIMI -> YRITYKSEN NIMI
B2: =BUDJETIN_otsikko -> KUUKAUSIBUDJETTI
B4: TULOT | C4: ARVIOITU | D4: TODELLINEN | E4: VIISI SUURINTA MÄÄRÄÄ | F4: EROTUS
B5: Nettomyynti | C5: 60,000.00 | D5: 54,000.00 | E5: =Tulot[[#This Row],[TODELLINEN]]+(10^-6)*ROW(Tulot[[#This Row],[TODELLINEN]]) -> 54,000.00 | F5: =Tulot[[#This Row],[TODELLINEN]]-Tulot[[#This Row],[ARVIOITU]] -> -6,000.00
B6: Korkotulot | C6: 3,000.00 | D6: 3,000.00 | E6: =Tulot[[#This Row],[TODELLINEN]]+(10^-6)*ROW(Tulot[[#This Row],[TODELLINEN]]) -> 3,000.00 | F6: =Tulot[[#This Row],[TODELLINEN]]-Tulot[[#This Row],[ARVIOITU]] -> 0.00
B7: Resurssien myynti (voitto/tappio) | C7: 300.00 | D7: 450.00 | E7: =Tulot[[#This Row],[TODELLINEN]]+(10^-6)*ROW(Tulot[[#This Row],[TODELLINEN]]) -> 450.00 | F7: =Tulot[[#This Row],[TODELLINEN]]-Tulot[[#This Row],[ARVIOITU]] -> 150.00
B8: Tulot yhteensä | C8: =SUBTOTAL(109,Tulot[ARVIOITU]) -> 63,300.00 | D8: =SUBTOTAL(109,Tulot[TODELLINEN]) -> 57,450.00 | F8: =SUBTOTAL(109,Tulot[EROTUS]) -> -5,850.00

Sheet Henkilöstökulut
B1: =YRITYKSEN_NIMI -> YRITYKSEN NIMI
B2: =BUDJETIN_otsikko -> KUUKAUSIBUDJETTI
B4: HENKILÖSTÖKULUT | C4: ARVIOITU | D4: TODELLINEN | E4: VIISI SUURINTA MÄÄRÄÄ | F4: EROTUS
B5: Palkat | C5: 9,500.00 | D5: 9,600.00 | E5: =Henkilöstökulut[[#This Row],[TODELLINEN]]+(10^-6)*ROW(Henkilöstökulut[[#This Row],[TODELLINEN]]) -> 9,600.00 | F5: =Henkilöstökulut[[#This Row],[ARVIOITU]]-Henkilöstökulut[[#This Row],[TODELLINEN]] -> -100.00
B6: Työsuhde-etuudet | C6: 4,000.00 | D6: 0.00 | E6: =Henkilöstökulut[[#This Row],[TODELLINEN]]+(10^-6)*ROW(Henkilöstökulut[[#This Row],[TODELLINEN]]) -> 0.00 | F6: =Henkilöstökulut[[#This Row],[ARVIOITU]]-Henkilöstökulut[[#This Row],[TODELLINEN]] -> 4,000.00
B7: Provisio | C7: 5,000.00 | D7: 4,500.00 | E7: =Henkilöstökulut[[#This Row],[TODELLINEN]]+(10^-6)*ROW(Henkilöstökulut[[#This Row],[TODELLINEN]]) -> 4,500.00 | F7: =Henkilöstökulut[[#This Row],[ARVIOITU]]-Henkilöstökulut[[#This Row],[TODELLINEN]] -> 500.00
B8: Henkilöstökulut yhteensä | C8: =SUBTOTAL(109,Henkilöstökulut[ARVIOITU]) -> 18,500.00 | D8: =SUBTOTAL(109,Henkilöstökulut[TODELLINEN]) -> 14,100.00 | F8: =SUBTOTAL(109,Henkilöstökulut[EROTUS]) -> 4,400.00

Sheet Liiketoiminnan kulut
B1: =YRITYKSEN_NIMI -> YRITYKSEN NIMI
B2: =BUDJETIN_otsikko -> KUUKAUSIBUDJETTI
B4: LIIKETOIMINNAN KULUT | C4: ARVIOITU | D4: TODELLINEN | E4: VIISI SUURINTA MÄÄRÄÄ | F4: EROTUS
B5: Mainonta | C5: 3,000.00 | D5: 2,500.00 | E5: =Liiketoiminnan_kulut[[#This Row],[TODELLINEN]]+(10^-6)*ROW(Liiketoiminnan_kulut[[#This Row],[TODELLINEN]]) -> 2,500.00 | F5: =Liiketoiminnan_kulut[[#This Row],[ARVIOITU]]-Liiketoiminnan_kulut[[#This Row],[TODELLINEN]] -> 500.00
B6: Luottotappiot | C6: 2,000.00 | D6: 2,000.00 | E6: =Liiketoiminnan_kulut[[#This Row],[TODELLINEN]]+(10^-6)*ROW(Liiketoiminnan_kulut[[#This Row],[TODELLINEN]]) -> 2,000.00 | F6: =Liiketoiminnan_kulut[[#This Row],[ARVIOITU]]-Liiketoiminnan_kulut[[#This Row],[TODELLINEN]] -> 0.00
B7: Käteisalennukset | C7: 1,500.00 | D7: 2,175.00 | E7: =Liiketoiminnan_kulut[[#This Row],[TODELLINEN]]+(10^-6)*ROW(Liiketoiminnan_kulut[[#This Row],[TODELLINEN]]) -> 2,175.00 | F7: =Liiketoiminnan_kulut[[#This Row],[ARVIOITU]]-Liiketoiminnan_kulut[[#This Row],[TODELLINEN]] -> -675.00
B8: Toimituskulut | C8: 2,000.00 | D8: 1,500.00 | E8: =Liiketoiminnan_kulut[[#This Row],[TODELLINEN]]+(10^-6)*ROW(Liiketoiminnan_kulut[[#This Row],[TODELLINEN]]) -> 1,500.00 | F8: =Liiketoiminnan_kulut[[#This Row],[ARVIOITU]]-Liiketoiminnan_kulut[[#This Row],[TODELLINEN]] -> 500.00
B9: Poistot | C9: 1,000.00 | D9: 1,000.00 | E9: =Liiketoiminnan_kulut[[#This Row],[TODELLINEN]]+(10^-6)*ROW(Liiketoiminnan_kulut[[#This Row],[TODELLINEN]]) -> 1,000.00 | F9: =Liiketoiminnan_kulut[[#This Row],[ARVIOITU]]-Liiketoiminnan_kulut[[#This Row],[TODELLINEN]] -> 0.00
B10: Maksut ja tilaukset | C10: 500.00 | D10: 525.00 | E10: =Liiketoiminnan_kulut[[#This Row],[TODELLINEN]]+(10^-6)*ROW(Liiketoiminnan_kulut[[#This Row],[TODELLINEN]]) -> 525.00 | F10: =Liiketoiminnan_kulut[[#This Row],[ARVIOITU]]-Liiketoiminnan_kulut[[#This Row],[TODELLINEN]] -> -25.00
B11: Vakuutukset | C11: 1,300.00 | D11: 1,275.00 | E11: =Liiketoiminnan_kulut[[#This Row],[TODELLINEN]]+(10^-6)*ROW(Liiketoiminnan_kulut[[#This Row],[TODELLINEN]]) -> 1,275.00 | F11: =Liiketoiminnan_kulut[[#This Row],[ARVIOITU]]-Liiketoiminnan_kulut[[#This Row],[TODELLINEN]] -> 25.00
B12: Korot | C12: 2,000.00 | D12: 2,200.00 | E12: =Liiketoiminnan_kulut[[#This Row],[TODELLINEN]]+(10^-6)*ROW(Liiketoiminnan_kulut[[#This Row],[TODELLINEN]]) -> 2,200.00 | F12: =Liiketoiminnan_kulut[[#This Row],[ARVIOITU]]-Liiketoiminnan_kulut[[#This Row],[TODELLINEN]] -> -200.00
B13: Lakiasiat ja valvonta | C13: 1,000.00 | D13: 800.00 | E13: =Liiketoiminnan_kulut[[#This Row],[TODELLINEN]]+(10^-6)*ROW(Liiketoiminnan_kulut[[#This Row],[TODELLINEN]]) -> 800.00 | F13: =Liiketoiminnan_kulut[[#This Row],[ARVIOITU]]-Liiketoiminnan_kulut[[#This Row],[TODELLINEN]] -> 200.00
B14: Huolto ja korjaukset | C14: 4,500.00 | D14: 4,600.00 | E14: =Liiketoiminnan_kulut[[#This Row],[TODELLINEN]]+(10^-6)*ROW(Liiketoiminnan_kulut[[#This Row],[TODELLINEN]]) -> 4,600.00 | F14: =Liiketoiminnan_kulut[[#This Row],[ARVIOITU]]-Liiketoiminnan_kulut[[#This Row],[TODELLINEN]] -> -100.00
B15: Toimistotarvikkeet | C15: 800.00 | D15: 750.00 | E15: =Liiketoiminnan_kulut[[#This Row],[TODELLINEN]]+(10^-6)*ROW(Liiketoiminnan_kulut[[#This Row],[TODELLINEN]]) -> 750.00 | F15: =Liiketoiminnan_kulut[[#This Row],[ARVIOITU]]-Liiketoiminnan_kulut[[#This Row],[TODELLINEN]] -> 50.00
B16: Postimaksut | C16: 400.00 | D16: 350.00 | E16: =Liiketoiminnan_kulut[[#This Row],[TODELLINEN]]+(10^-6)*ROW(Liiketoiminnan_kulut[[#This Row],[TODELLINEN]]) -> 350.00 | F16: =Liiketoiminnan_kulut[[#This Row],[ARVIOITU]]-Liiketoiminnan_kulut[[#This Row],[TODELLINEN]] -> 50.00
B17: Vuokra tai asuntolaina | C17: 4,100.00 | D17: 4,500.00 | E17: =Liiketoiminnan_kulut[[#This Row],[TODELLINEN]]+(10^-6)*ROW(Liiketoiminnan_kulut[[#This Row],[TODELLINEN]]) -> 4,500.00 | F17: =Liiketoiminnan_kulut[[#This Row],[ARVIOITU]]-Liiketoiminnan_kulut[[#This Row],[TODELLINEN]] -> -400.00
B18: Myynnin kulut | C18: 350.00 | D18: 400.00 | E18: =Liiketoiminnan_kulut[[#This Row],[TODELLINEN]]+(10^-6)*ROW(Liiketoiminnan_kulut[[#This Row],[TODELLINEN]]) -> 400.00 | F18: =Liiketoiminnan_kulut[[#This Row],[ARVIOITU]]-Liiketoiminnan_kulut[[#This Row],[TODELLINEN]] -> -50.00
B19: Toimitus ja varastointi | C19: 900.00 | D19: 840.00 | E19: =Liiketoiminnan_kulut[[#This Row],[TODELLINEN]]+(10^-6)*ROW(Liiketoiminnan_kulut[[#This Row],[TODELLINEN]]) -> 840.00 | F19: =Liiketoiminnan_kulut[[#This Row],[ARVIOITU]]-Liiketoiminnan_kulut[[#This Row],[TODELLINEN]] -> 60.00
B20: Tarvikkeet | C20: 5,000.00 | D20: 4,500.00 | E20: =Liiketoiminnan_kulut[[#This Row],[TODELLINEN]]+(10^-6)*ROW(Liiketoiminnan_kulut[[#This Row],[TODELLINEN]]) -> 4,500.00 | F20: =Liiketoiminnan_kulut[[#This Row],[ARVIOITU]]-Liiketoiminnan_kulut[[#This Row],[TODELLINEN]] -> 500.00
B21: Verot | C21: 3,000.00 | D21: 3,200.00 | E21: =Liiketoiminnan_kulut[[#This Row],[TODELLINEN]]+(10^-6)*ROW(Liiketoiminnan_kulut[[#This Row],[TODELLINEN]]) -> 3,200.00 | F21: =Liiketoiminnan_kulut[[#This Row],[ARVIOITU]]-Liiketoiminnan_kulut[[#This Row],[TODELLINEN]] -> -200.00
B22: Puhelin | C22: 250.00 | D22: 280.00 | E22: =Liiketoiminnan_kulut[[#This Row],[TODELLINEN]]+(10^-6)*ROW(Liiketoiminnan_kulut[[#This Row],[TODELLINEN]]) -> 280.00 | F22: =Liiketoiminnan_kulut[[#This Row],[ARVIOITU]]-Liiketoiminnan_kulut[[#This Row],[TODELLINEN]] -> -30.00
B23: Lämmitys, sähkö ja vesi | C23: 1,400.00 | D23: 1,385.00 | E23: =Liiketoiminnan_kulut[[#This Row],[TODELLINEN]]+(10^-6)*ROW(Liiketoiminnan_kulut[[#This Row],[TODELLINEN]]) -> 1,385.00 | F23: =Liiketoiminnan_kulut[[#This Row],[ARVIOITU]]-Liiketoiminnan_kulut[[#This Row],[TODELLINEN]] -> 15.00
B24: Muut | C24: 1,000.00 | D24: 750.00 | E24: =Liiketoiminnan_kulut[[#This Row],[TODELLINEN]]+(10^-6)*ROW(Liiketoiminnan_kulut[[#This Row],[TODELLINEN]]) -> 750.00 | F24: =Liiketoiminnan_kulut[[#This Row],[ARVIOITU]]-Liiketoiminnan_kulut[[#This Row],[TODELLINEN]] -> 250.00
B25: Liiketoiminnan kulut yhteensä | C25: =SUBTOTAL(109,Liiketoiminnan_kulut[ARVIOITU]) -> 36,000.00 | D25: =SUBTOTAL(109,Liiketoiminnan_kulut[TODELLINEN]) -> 35,530.00 | F25: =SUBTOTAL(109,Liiketoiminnan_kulut[EROTUS]) -> 470.00
